[Event "7th Sharjah Masters 2024"]
[Site "Sharjah"]
[Date "2024.05.15"]
[Round "2.7"]
[White "Krzyzanowski, Marcin"]
[Black "Mishra, Abhimanyu"]
[Result "1-0"]
[ECO "C07"]
[WhiteElo "2526"]
[BlackElo "2634"]
[Annotator "RC"]
[PlyCount "139"]
[EventDate "2024.05.13"]
[EventType "swiss"]
[EventCountry "UAE"]
[SourceTitle "playchess.com"]
[Source "ChessBase"]
[SourceQuality "1"]
[TimeControl "5400+30"]

1. e4 {[%emt 1:31:00]} e6 {[%emt 1:31:00]} 2. d4 {[%emt 0:00:30]} d5 {[%emt 0:00:30]} 3. Nd2 {[%emt 0:00:30]} c5 {[%emt 0:00:30]} 4. Ngf3 {[%emt 0:00:30]} cxd4 {[%emt 0:00:30]} 5. Nxd4 {[%emt 0:00:30]} Nc6 {[%emt 0:00:30]} 6. Bb5 {[%emt 0:00:30]} Bd7 {[%emt 0:00:30]} 7. Nxc6 {[%emt 0:00:30]} bxc6 {[%emt 0:00:30]} 8. Bd3 {[%emt 0:00:30]} Bd6 {[%emt 0:00:30]} 9. Qe2 {[%emt 0:00:30]} Qc7 {[%emt 0:00:30]} 10. Nf3 {[%emt 0:00:30]} dxe4 {[%emt 0:00:30]} 11. Qxe4 {[%emt 0:00:30]} Nf6 {[%emt 0:00:30]} 12. Qh4 {[%emt 0:00:30]} h6 {[%emt 0:00:30]} 13. O-O {[%emt 0:00:30]} c5 {[%emt 0:00:30]} 14. Re1 {[%emt 0:00:30]} Ke7 {[%emt 0:00:30]} 15. Nd2 {[%emt 0:00:30]} g5 {[%emt 0:00:30]} 16. Qh3 {[%emt 0:00:30]} Rag8 {[%emt 0:00:30]} 17. Nc4 {[%emt 0:00:30]} Bf4 {[%emt 0:00:30]} 18. Bf1 {[%emt 0:00:30]} Bc6 {[%emt 0:00:30]} 19. Be3 Bd5 {[%emt 0:00:30]} 20. Rad1 {[%emt 0:01:00]} h5 {[%emt 0:00:30]} 21. Bxf4 {[%emt 0:00:30]} gxf4 {[%emt 0:00:30]} 22. Ne5 {[%emt 0:00:30]} Kf8 {[%emt 0:00:30]} 23. c4 {[%emt 0:00:30]} Be4 {[%emt 0:00:30]} 24. Qc3 {[%emt 0:00:30]} h4 {[%emt 0:00:30]} 25. f3 {[%emt 0:00:30]} Rh5 {[%emt 0:00:30]} 26. Ng4 {[%emt 0:00:30]} Nxg4 {[%emt 0:00:30]} 27. fxg4 {[%emt 0:00:30]} Re5 {[%emt 0:00:30]} 28. Rd8+ {[%emt 0:00:30]} Qxd8 {[%emt 0:00:30]} 29. Qxe5 {[%emt 0:00:30]} Bb7 {[%emt 0:00:30]} 30. Qxc5+ {[%emt 0:00:30]} Qe7 {[%emt 0:00:30]} 31. Qxa7 {[%emt 0:00:30]} Rxg4 {[%emt 0:00:30]} 32. h3 {[%emt 0:00:30]} Rg6 {[%emt 0:00:30]} 33. Qb8+ {[%emt 0:00:30]} Kg7 {[%emt 0:00:30]} 34. Qxf4 {[%emt 0:00:30]} Qb4 {[%emt 0:00:30]} 35. Qe5+ {[%emt 0:00:30]} Kg8 {[%emt 0:00:30]} 36. Rd1 {[%emt 0:00:30]} Qe7 {[%emt 0:00:30]} 37. Qd6 {[%emt 0:00:30]} Kf8 {[%emt 0:00:30]} 38. Qd8+ {[%emt 0:00:30]} Qxd8 {[%emt 0:00:30]} 39. Rxd8+ {[%emt 0:00:30]} Ke7 {[%emt 0:00:30]} 40. Rh8 {[%emt 0:00:30]} e5 {[%emt 0:00:30]} 41. c5 {[%emt 0:00:30]} e4 {[%emt 0:00:30]} 42. Rxh4 {[%emt 0:00:30]} e3 {[%emt 0:00:30]} 43. Ra4 {[%emt 0:00:30]} Bc6 {[%emt 0:00:30]} 44. Ra3 {[%emt 0:00:30]} Rg3 {[%emt 0:00:30]} 45. b4 {[%emt 0:00:30]} Kd8 {[%emt 0:00:30]} 46. Rb3 {[%emt 0:00:30]} f5 {[%emt 0:00:30]} 47. b5 {[%emt 0:00:30]} Be4 {[%emt 0:00:30]} 48. Rb4 {[%emt 0:00:30]} Bf3 {[%emt 0:00:30]} 49. Rb2 {[%emt 0:00:30]} f4 {[%emt 0:00:30]} 50. c6 {[%emt 0:00:30]} Kc8 {[%emt 0:00:30]} 51. a4 {[%emt 0:00:30]} Bd5 {[%emt 0:00:30]} 52. Kh2 {[%emt 0:00:30]} Rg7 {[%emt 0:00:30]} 53. a5 {[%emt 0:00:30]} f3 {[%emt 0:00:30]} 54. gxf3 {[%emt 0:00:30]} Bxf3 {[%emt 0:00:30]} 55. h4 {[%emt 0:00:30]} Kc7 {[%emt 0:00:30]} 56. Rc2 {[%emt 0:00:30]} e2 {[%emt 0:00:30]} 57. Rxe2 {[%emt 0:00:30]} Bxe2 {[%emt 0:00:30]} 58. Bxe2 {[%emt 0:00:30]} Rf7 {[%emt 0:00:30]} 59. Kg3 {[%emt 0:00:30]} Rf5 {[%emt 0:00:30]} 60. h5 {[%emt 0:00:30]} Re5 {[%emt 0:00:30]} 61. Kf2 {[%emt 0:00:30]} Rf5+ {[%emt 0:00:30]} 62. Ke1 {[%emt 0:00:30]} Rg5 {[%emt 0:00:30]} 63. h6 {[%emt 0:00:30]} Rg1+ {[%emt 0:00:30]} 64. Kf2 {[%emt 0:00:30]} Rg6 {[%emt 0:00:30]} 65. Bf3 {[%emt 0:00:30]} Rxh6 {[%emt 0:00:30]} 66. b6+ {[%emt 0:00:30]} Kd6 {[%emt 0:00:30]} 67. c7 {[%emt 0:00:30]} Rh2+ {[%emt 0:00:30]} 68. Bg2 {[%emt 0:00:30]} Kd7 {[%emt 0:00:30]} 69. Kg3 {[%emt 0:00:30]} Rh8 {[%emt 0:00:30]} 70. Bh3+ {[%emt 0:00:30]} 1-0

[Event "7th Sharjah Masters 2024"]
[Site "Sharjah"]
[Date "2024.05.15"]
[Round "2.8"]
[White "Murzin, Volodar"]
[Black "Iniyan, Pa"]
[Result "1-0"]
[ECO "D45"]
[WhiteElo "2634"]
[BlackElo "2497"]
[Annotator "TA"]
[PlyCount "95"]
[EventDate "2024.05.13"]
[EventType "swiss"]
[EventCountry "UAE"]
[SourceTitle "playchess.com"]
[Source "ChessBase"]
[SourceQuality "1"]
[TimeControl "5400+30"]

{[%evp 22,95,18,20,26,16,25,0,-4,0,77,66,66,65,70,73,57,81,74,71,91,90,107,101,105,105,102,101,111,104,101,94,108,97,93,93,100,101,118,108,101,98,104,96,102,103,114,20,135,133,136,111,118,102,156,131,141,142,187,93,93,81,398,345,403,383,4690,4871,1597,712,4934,4656,4982,4133,1290,1199]} 1. d4 {[%emt 1:31:00]} d5 {[%emt 1:31:00]} 2. Nf3 {[%emt 0:00:30]} Nf6 {[%emt 0:00:30]} 3. c4 {[%emt 0:00:30]} c6 {[%emt 0:00:30]} 4. Nc3 {[%emt 0:00:30]} e6 {[%emt 0:00:30]} 5. e3 {[%emt 0:00:30]} Nbd7 {[%emt 0:00:30]} 6. Qc2 {[%emt 0:00:30]} b6 {[%emt 0:00:30]} 7. cxd5 {[%emt 0:00:30]} cxd5 {[%emt 0:00:30] now scores much better than the old 7...exd5.} 8. Nb5 {[%emt 0:00:30] D45: Semi-Slav: 5 e3.} Bb4+ {[%emt 0:00:30]} 9. Bd2 {[%emt 0:00:30]} Bxd2+ {[%emt 0:00:30]} 10. Nxd2 {[%emt 0:00:30]} O-O {[%emt 0:00:30]} 11. Rc1 {[%emt 0:00:30]} a6 {[%emt 0:00:30]} 12. Nd6 {[%emt 0:00:30]} b5 {[%emt 0:00:30]} 13. Qc7 $146 {[%emt 0:00:30]} ({Predecessor:} 13. Be2 Nb6 14. Qc7 Nc4 15. Qxd8 Rxd8 16. N6xc4 dxc4 17. Bf3 Ra7 18. b3 cxb3 19. Nxb3 {1-0 Prchly,M (2273)-Portych,V (2093) CZE-Cup33 final email 2016}) 13... Nb6 14. b3 {[%emt 0:00:30]} Qxc7 {[%emt 0:01:00]} 15. Rxc7 {[%emt 0:00:30]} Ne8 {[%emt 0:00:30]} (15... Bd7 $1 $11) 16. Nxe8 $16 {[%emt 0:00:30]} Rxe8 {[%emt 0:00:30]} 17. Bd3 {[%emt 0:00:30]} f6 {[%emt 0:00:30]} 18. Ke2 {[%emt 0:00:30]} e5 {[%emt 0:00:30]} 19. dxe5 {[%emt 0:00:30]} fxe5 {[%emt 0:00:30]} 20. e4 {[%emt 0:00:30]} Be6 {[%emt 0:00:30]} 21. Rhc1 {[%emt 0:00:30]} dxe4 {[%emt 0:00:30]} 22. Bxe4 {[%emt 0:00:30]} (22. Nxe4 Nd5 23. R7c6 Nf4+ 24. Ke3 Nxg2+ 25. Kf3 Nh4+ 26. Ke2 Bg4+ 27. Kd2 Nf3+ 28. Kc3 Rf8 $17 (28... Nxh2 29. a4 $17)) 22... Nd5 {[%emt 0:00:30]} 23. Bxd5 $1 {[%emt 0:00:30]} Bxd5 {[%emt 0:00:30]} 24. g3 {[%emt 0:00:30]} Bf7 {[%emt 0:00:30]} 25. Rd7 {[%emt 0:00:30]} Be6 {[%emt 0:00:30]} 26. Rd6 {[%emt 0:00:30]} a5 {[%emt 0:00:30]} 27. Rb6 {[%emt 0:00:30]} a4 {[%emt 0:00:30]} 28. Rxb5 {[%emt 0:00:30]} axb3 {[%emt 0:00:30]} 29. axb3 {[%emt 0:00:30]} Ra2 {[%emt 0:00:30] [#]} 30. Ke3 $1 {[%emt 0:00:30]} (30. Rxe5 $2 Bg4+ 31. Kd3 Rxe5 $19) 30... Rd8 {[%emt 0:00:30]} 31. Ne4 {[%emt 0:00:30]} (31. Rxe5 $2 Rdxd2 32. f3 Rxh2 $19 (32... Bxb3 $2 33. Rc3 $19)) 31... Rb2 {[%emt 0:00:30]} 32. Rc3 {[%emt 0:00:30]} Rb1 {[%emt 0:00:30]} 33. f3 {[%emt 0:00:30]} (33. Rxe5 Bxb3 34. h4 Rf8 $14) 33... h6 {[%emt 0:00:30]} 34. g4 {[%emt 0:00:30]} (34. h4 $16) 34... Re1+ {[%emt 0:00:30]} (34... Bxg4 $1 $11 35. Rxe5 (35. fxg4 Re1+ 36. Kf3 Rf8+ 37. Kg3 Rxe4 $11) 35... Bh3) 35. Kf2 $16 {[%emt 0:00:30]} Rb1 {[%emt 0:00:30]} 36. Rxe5 {[%emt 0:00:30]} Bxb3 {[%emt 0:00:30]} 37. Re7 {[%emt 0:00:30]} Rf8 {[%emt 0:00:30]} (37... Bd5 $142) 38. Nd6 $16 {[%emt 0:00:30]} Bd5 {[%emt 0:00:30]} 39. Nf5 {[%emt 0:00:30]} Rf7 {[%emt 0:00:30]} 40. Re8+ {[%emt 0:00:30]} (40. Rd3 $18 {and White stays clearly on top.} Ba2 41. Re2) 40... Kh7 $16 {[%emt 0:00:30]} 41. h4 {[%emt 0:00:30]} h5 $2 {[%emt 0:00:30][%mdl 8192] [#]} (41... g6 $16 {is a better chance.}) 42. Rcc8 $1 $18 {[%emt 0:00:30]} Bxf3 {[%emt 0:00:30]} 43. Kxf3 {[%emt 0:00:30]} Rb4 $2 {[%emt 0:00:30]} (43... Kg6 44. Kg3 Rg1+ 45. Kh3 Rd7 46. Rc6+ Kf7) 44. Rh8+ $18 {[%emt 0:00:30]} Kg6 {[%emt 0:00:30]} 45. Rc6+ {[%emt 0:00:30]} ({Worse is} 45. gxh5+ Kxf5 46. Rhf8 Kf6 $11) 45... Rf6 {[%emt 0:00:30]} 46. Rxf6+ {[%emt 0:00:30]} ({Stronger than} 46. gxh5+ Kxf5 47. Rc3 Ke6+ (47... Rxh4 48. Rc5+ Ke6+ 49. Kg3 $11) 48. Kg3 Rb7 $11) 46... Kxf6 {[%emt 0:00:30]} 47. Rxh5 {[%emt 0:00:30]} g6 {[%emt 0:00:30]} 48. Ne3 {[%emt 0:00:30]} 1-0

[Event "7th Sharjah Masters 2024"]
[Site "Sharjah"]
[Date "2024.05.15"]
[Round "2.9"]
[White "Salem, A.R. Saleh"]
[Black "Royal, Shreyas"]
[Result "1-0"]
[ECO "B22"]
[WhiteElo "2629"]
[BlackElo "2464"]
[Annotator "RC"]
[PlyCount "61"]
[EventDate "2024.05.13"]
[EventType "swiss"]
[EventCountry "UAE"]
[SourceTitle "playchess.com"]
[Source "ChessBase"]
[SourceQuality "1"]
[TimeControl "5400+30"]

1. d4 {[%emt 0:00:05]} d5 {[%emt 0:00:16]} 2. c4 {[%emt 0:00:10]} dxc4 {[%emt 0:00:17]} 3. Nf3 {[%emt 0:00:26]} Nf6 {[%emt 0:00:08]} 4. e3 {[%emt 0:00:12]} e6 {[%emt 0:00:08]} 5. Bxc4 {[%emt 0:00:08]} c5 {[%emt 0:00:07]} 6. O-O {[%emt 0:00:19]} Nc6 {[%emt 0:00:26]} 7. Nc3 {[%emt 0:06:05]} a6 {[%emt 0:00:44]} 8. Bd3 {[%emt 0:02:57]} cxd4 {[%emt 0:01:02]} 9. exd4 {[%emt 0:00:55]} Be7 {[%emt 0:00:10]} 10. Be3 {[%emt 0:09:00]} O-O {[%emt 0:02:25]} 11. a3 {[%emt 0:06:39]} h6 {[%emt 0:12:48]} 12. Rc1 {[%emt 0:03:12]} Re8 {[%emt 0:12:26]} 13. Ne5 {[%emt 0:15:03]} Nxe5 {[%emt 0:11:27]} 14. dxe5 {[%emt 0:03:17]} Nd5 {[%emt 0:00:07]} 15. Qf3 {[%emt 0:04:14]} Bg5 {[%emt 0:20:49]} 16. Ne4 {[%emt 0:15:05]} Nxe3 {[%emt 0:04:28]} 17. fxe3 {[%emt 0:00:29]} Rf8 {[%emt 0:00:05]} 18. Nxg5 {[%emt 0:06:10]} Qxd3 {[%emt 0:01:29]} 19. Nxf7 {[%emt 0:00:38]} Bd7 {[%emt 0:00:39]} 20. Rcd1 {[%emt 0:00:31]} Qb5 {[%emt 0:00:23]} 21. Qh5 {[%emt 0:01:21]} Bc6 {[%emt 0:01:34]} 22. Nxh6+ {[%emt 0:06:56]} gxh6 {[%emt 0:00:10]} 23. Qg6+ {[%emt 0:00:03]} Kh8 {[%emt 0:00:12]} 24. Qxh6+ {[%emt 0:00:02]} Kg8 {[%emt 0:00:05]} 25. Qxe6+ {[%emt 0:00:15]} Kh8 {[%emt 0:04:20]} 26. Qh6+ {[%emt 0:00:41]} Kg8 {[%emt 0:00:01]} 27. Qg6+ {[%emt 0:00:26]} Kh8 {[%emt 0:00:02]} 28. Rf6 {[%emt 0:00:32]} Qxe5 {[%emt 0:03:16]} 29. Qh6+ {[%emt 0:00:05]} Kg8 {[%emt 0:00:03]} 30. Rg6+ {[%emt 0:00:09]} Kf7 {[%emt 0:00:04]} 31. Rf1+ {[%emt 0:00:08]} 1-0

[Event "7th Sharjah Masters 2024"]
[Site "Sharjah"]
[Date "2024.05.15"]
[Round "2.10"]
[White "Maghsoodloo, Parham"]
[Black "Sethuraman, S.P."]
[Result "1-0"]
[ECO "A04"]
[WhiteElo "2733"]
[BlackElo "2593"]
[Annotator "TA"]
[PlyCount "117"]
[EventDate "2024.05.13"]
[EventType "swiss"]
[EventCountry "UAE"]
[SourceTitle "playchess.com"]
[Source "ChessBase"]
[SourceQuality "1"]
[TimeControl "5400+30"]

{[%evp 39,117,27,41,14,10,10,51,18,8,17,30,19,37,33,60,21,16,21,216,220,207,213,193,172,164,153,160,161,131,145,149,160,148,147,183,157,147,146,152,173,275,254,258,149,175,175,217,237,238,238,259,258,537,537,472,450,391,406,392,340,338,336,313,293,893,970,967,974,974,974,974,974,974,973,29960,10697,29955,947,5189,903]} 1. Nf3 {[%emt 0:00:04]} Nf6 {[%emt 0:00:21]} 2. g3 {[%emt 0:00:17]} c5 {[%emt 0:00:25]} 3. Bg2 {[%emt 0:00:15]} Nc6 {[%emt 0:00:09]} 4. O-O {[%emt 0:00:17]} e5 {[%emt 0:01:12]} 5. e4 {[%emt 0:00:12]} d6 {[%emt 0:00:33]} 6. d3 {[%emt 0:00:08] A04: Unusual lines after 1 Nf3 and King's Indian Attack.} g6 {[%emt 0:00:29]} 7. c4 {[%emt 0:00:08]} h5 $146 {[%emt 0:00:38]} ({Predecessor:} 7... Bg7 8. Nc3 O-O 9. Ne1 Bg4 10. f3 Bd7 11. Nc2 a6 12. a4 Ne8 13. Rb1 Rb8 {½-½ Narayanan,S (2661)-Nguyen,T (2649) Jermuk Avagyan Memorial 2023 (8)}) 8. Nc3 {[%emt 0:10:03]} Bg4 {[%emt 0:01:07]} 9. Bg5 {[%emt 0:05:48]} Be7 {[%emt 0:08:56]} 10. Qd2 {[%emt 0:07:33]} Bxf3 {[%emt 0:16:12]} 11. Bxf3 {[%emt 0:00:38]} Nd5 {[%emt 0:01:45]} 12. Bxe7 {[%emt 0:08:33]} Ndxe7 {[%emt 0:00:14]} 13. Bd1 {[%emt 0:03:04]} h4 {[%emt 0:04:25]} 14. g4 {[%emt 0:01:58]} Qd7 {[%emt 0:18:40]} 15. h3 {[%emt 0:09:08]} Kf8 {[%emt 0:07:12]} 16. Ba4 {[%emt 0:02:26]} Qe6 {[%emt 0:13:43]} 17. Bxc6 {[%emt 0:02:46]} bxc6 {[%emt 0:05:08]} 18. f4 {[%emt 0:00:40]} exf4 {[%emt 0:00:06]} 19. Qxf4 {[%emt 0:06:44]} Kg7 {[%emt 0:01:12]} 20. g5 {[%emt 0:02:51]} ({Better is} 20. e5 $16 dxe5 21. Qe3) 20... Rh5 $11 {[%emt 0:01:59]} 21. Qf6+ {[%emt 0:05:54]} Kg8 {[%emt 0:00:06]} 22. Kh2 {[%emt 0:00:29]} Rd8 {[%emt 0:07:15]} (22... Rb8 {keeps more tension.} 23. Na4 Rd8 24. Rac1 Qxf6 25. gxf6 Nc8) 23. Qxe6 {[%emt 0:07:11]} fxe6 {[%emt 0:00:04]} 24. Rf6 {[%emt 0:00:08]} e5 {[%emt 0:00:05]} 25. Rg1 {[%emt 0:02:58]} Kg7 {[%emt 0:06:11]} 26. Rgf1 {[%emt 0:01:25]} Kg8 $1 {[%emt 0:01:15]} 27. Nd1 {[%emt 0:08:44]} Rxg5 {[%emt 0:00:06]} 28. Ne3 {[%emt 0:00:03]} Rh5 $2 {[%emt 0:01:00]} (28... Rg3 $11 {and Black is okay.} 29. Ng4 Rxd3) 29. Ng4 $18 {[%emt 0:00:10]} Rh7 {[%emt 0:02:00]} 30. Re6 {[%emt 0:02:45]} Rg7 {[%emt 0:00:04]} 31. Rff6 {[%emt 0:02:43]} Nc8 {[%emt 0:00:05]} 32. Rxg6 {[%emt 0:00:40]} Rxg6 {[%emt 0:00:05]} 33. Rxg6+ {[%emt 0:00:03]} Kf7 {[%emt 0:00:11]} 34. Rh6 $1 {[%emt 0:00:06]} Kg7 {[%emt 0:01:19]} 35. Rxh4 {[%emt 0:00:32]} Rf8 {[%emt 0:01:36]} 36. Ne3 {[%emt 0:00:57]} Rf2+ {[%emt 0:00:26]} 37. Kg1 {[%emt 0:04:39]} Rxb2 {[%emt 0:00:16]} 38. Nf5+ {[%emt 0:00:07]} Kg8 {[%emt 0:01:10]} 39. Rg4+ {[%emt 0:00:05]} Kf8 {[%emt 0:00:31]} (39... Kh8 $142 40. Rg2 Rxg2+ 41. Kxg2 Kg8) 40. h4 $18 {[%emt 0:01:24]} Ne7 {[%emt 0:00:11]} 41. Nxd6 {[%emt 0:00:12]} (41. h5 $18 {Strongly threatening h6.} Nxf5 42. exf5 Rb1+ 43. Kh2) 41... Rxa2 $16 {[%emt 0:00:26]} 42. h5 {[%emt 0:01:18]} Rd2 {[%emt 0:01:27] [#]} 43. Rg3 $1 {[%emt 0:01:11]} Ng8 {[%emt 0:00:04]} 44. Nf5 {[%emt 0:01:12]} a5 {[%emt 0:00:45]} 45. h6 {[%emt 0:00:13]} Nf6 $2 {[%emt 0:01:14] [#]} (45... Nxh6 {keeps fighting.} 46. Nxh6 a4 47. Rg8+ Ke7) 46. Rg6 $1 $18 {[%emt 0:00:20]} Rd1+ {[%emt 0:00:08]} 47. Kf2 {[%emt 0:00:21]} Kf7 {[%emt 0:00:15]} 48. Rg7+ {[%emt 0:00:54]} Kf8 {[%emt 0:00:05]} 49. Ke2 {[%emt 0:02:09]} Rh1 {[%emt 0:00:05]} 50. Ra7 {[%emt 0:00:12]} a4 {[%emt 0:01:24]} 51. Rxa4 {[%emt 0:00:14]} Ng4 $2 {[%emt 0:00:44]} (51... Nh5 52. Kf3 Nf4) 52. Ra8+ $18 {[%emt 0:00:07]} Kf7 {[%emt 0:00:04]} 53. Ra7+ {[%emt 0:00:14]} Kf6 {[%emt 0:00:23]} 54. h7 {[%emt 0:00:19]} Rh3 {[%emt 0:00:59]} 55. Kf1 {[%emt 0:01:21]} Rh2 {[%emt 0:00:34]} 56. Kg1 {[%emt 0:00:11]} Rh5 {[%emt 0:00:43]} 57. Kg2 {[%emt 0:00:21]} Nh2 {[%emt 0:00:34]} 58. Rg7 {[%emt 0:00:55]} (58. Rc7 $142 Kg6 59. Rxc6+ (59. Rg7+ Kf6 $18) 59... Kxh7 60. Rxc5 Kg6 61. Rxe5 Kf6 62. d4 Ng4 63. Rb5) 58... Nf1 {[%emt 0:00:31]} 59. Rg8 {[%emt 0:03:40]} (59. Rc7 $142 Ne3+ 60. Nxe3) 1-0

[Event "7th Sharjah Masters 2024"]
[Site "Sharjah"]
[Date "2024.05.15"]
[Round "2.11"]
[White "Moroni, Luca Jr"]
[Black "Yu, Yangyi"]
[Result "0-1"]
[ECO "A30"]
[WhiteElo "2581"]
[BlackElo "2729"]
[Annotator "TA"]
[PlyCount "86"]
[EventDate "2024.05.13"]
[EventType "swiss"]
[EventCountry "UAE"]
[SourceTitle "playchess.com"]
[Source "ChessBase"]
[SourceQuality "1"]
[TimeControl "5400+30"]

{[%evp 23,86,58,49,37,58,47,52,50,46,47,60,59,65,36,43,27,35,31,12,7,52,41,43,54,51,56,79,62,80,-2,-19,-20,-17,-128,-105,-129,-123,-229,-214,-253,-242,-261,-259,-237,-251,-233,-188,-177,-144,-375,-313,-481,-460,-496,-482,-460,-436,-816,-816,-808,-412,-452,-400,-651,-645]} 1. Nf3 {[%emt 0:00:04]} Nf6 {[%emt 0:00:55]} 2. c4 {[%emt 0:00:20]} e6 {[%emt 0:01:36]} 3. g3 {[%emt 0:00:15]} b6 {[%emt 0:02:56]} 4. Bg2 {[%emt 0:00:22]} Bb7 {[%emt 0:00:09]} 5. O-O {[%emt 0:00:26]} c5 {[%emt 0:00:23]} 6. Nc3 {[%emt 0:00:18]} Be7 {[%emt 0:01:50]} 7. d4 {[%emt 0:00:06]} cxd4 {[%emt 0:00:26]} 8. Qxd4 {[%emt 0:00:07]} O-O {[%emt 0:05:29]} 9. Rd1 {[%emt 0:03:28]} Nc6 {[%emt 0:07:49]} 10. Qd2 {[%emt 0:13:36]} a6 {[%emt 0:08:16]} 11. b3 {[%emt 0:09:46]} Qc7 {[%emt 0:01:15]} 12. Bb2 {[%emt 0:01:28]} d6 {[%emt 0:05:07]} 13. Rac1 {[%emt 0:03:12][%cal Oc3d5] Nd5! would now be deadly.} Na7 {[%emt 0:08:34]} 14. Qd4 {[%emt 0:09:33]} Rad8 {[%emt 0:03:33]} 15. e4 {[%emt 0:02:50] White is slightly better.} Nc6 {[%emt 0:00:58]} 16. Qe3 {[%emt 0:05:43][%cal Oc3d5]} Ne5 {[%emt 0:00:11]} 17. Nd4 {[%emt 0:01:25]} Rfe8 {[%emt 0:01:44]} 18. h3 {[%emt 0:05:13]} Bf8 {[%emt 0:00:58]} 19. f4 {[%emt 0:03:48]} Ng6 {[%emt 0:04:30]} 20. Qf2 {[%emt 0:03:30]} Qb8 {[%emt 0:00:19]} 21. Kh1 {[%emt 0:08:39]} Ba8 {[%emt 0:15:27][%cal Ob6b5]} 22. Re1 {[%emt 0:02:19]} Rc8 {[%emt 0:01:36]} 23. Rcd1 {[%emt 0:00:58]} h5 {[%emt 0:00:36]} 24. a4 {[%emt 0:04:06]} Rc5 {[%emt 0:00:16]} 25. Ba3 {[%emt 0:01:26]} Rc7 {[%emt 0:00:07][%cal Oh5h4]} 26. Nf3 {[%emt 0:02:38] [#]} (26. f5 $16 Ne5 27. Bc1) 26... b5 $1 $11 {[%emt 0:01:32]} 27. axb5 {[%emt 0:01:33]} (27. Bxd6 Bxd6 28. Rxd6 bxc4 $19) 27... axb5 {[%emt 0:00:07] White must now prevent ...b4.} 28. f5 {[%emt 0:03:00] [#]} (28. Bxd6 Bxd6 29. Rxd6 bxc4 $17) (28. e5 $11 b4 29. Bxb4 Qxb4 30. Nb5) 28... exf5 $1 $17 {[%emt 0:03:40]} (28... b4 29. fxg6 bxa3 (29... bxc3 30. gxf7+ Rxf7 31. Ng5 $11) 30. gxf7+ Rxf7 31. Ng5 $11) 29. exf5 {[%emt 0:02:36] aiming for Rxe8.} Bxf3 {[%emt 0:00:31]} (29... Rxe1+ 30. Nxe1 Bxg2+ 31. Kxg2 Qa8+ 32. Qf3 Qxa3 33. fxg6 bxc4 (33... fxg6 34. Nxb5 Qa2+ 35. Qf2 $11) 34. bxc4 $17) 30. Bxf3 {[%emt 0:00:26]} (30. Qxf3 $2 Rxe1+ (30... Ne5 $2 31. Rxe5 dxe5 32. Bxf8 $19) 31. Rxe1 Ne5 $19) (30. Rxe8 $17 Bxg2+ 31. Qxg2 Nxe8 (31... Qxe8 32. Nxb5 Re7 33. fxg6 $11) 32. fxg6) 30... Rxe1+ $19 {[%emt 0:00:06]} 31. Rxe1 {[%emt 0:00:47] [#]} Ne5 {[%emt 0:00:20]} 32. Nxb5 {[%emt 0:03:48]} Nd3 $1 {[%emt 0:00:05][%csl LRe1,LRf2] Excellent horsemanship.} 33. Qf1 {[%emt 0:00:06]} Nxe1 {[%emt 0:00:05]} 34. Qxe1 {[%emt 0:00:10]} Re7 {[%emt 0:02:31]} 35. Qd2 {[%emt 0:01:17]} Ne4 {[%emt 0:00:18]} 36. Qg2 {[%emt 0:00:05] This move loses the game for White.} (36. Qf4 $17 {was forced.} Nc3 37. Nxc3) 36... d5 {[%emt 0:06:04]} 37. Bxe7 {[%emt 0:01:33]} (37. Kh2 $142 Re8 38. Bc1) 37... Nxg3+ {[%emt 0:00:05]} 38. Kg1 {[%emt 0:01:40] Strongly threatening Bxf8.} Bxe7 {[%emt 0:00:06]} 39. Qf2 {[%emt 0:01:10] Wards off Bc5} dxc4 {[%emt 0:00:21]} ({Much less strong is} 39... Nxf5 40. Bxd5 g6 41. Nc3 $19) 40. bxc4 {[%emt 0:00:10]} (40. f6 $142 Bxf6 (40... gxf6 41. Kg2 $17) 41. bxc4) 40... Qe5 {[%emt 0:00:40][%cal Oe7c5] And now ...Bc5! would win.} ({Less strong is} 40... Nxf5 41. Be4 Nh4 42. Bd5 $19) 41. Bd5 {[%emt 0:00:53]} Nxf5 {[%emt 0:00:35]} 42. Nc3 {[%emt 0:00:27]} Bh4 {[%emt 0:01:54]} 43. Qd2 {[%emt 0:00:09]} (43. Qf1 $142) 43... Be1 {[%emt 0:00:43] Weighted Error Value: White=0.57/Black=0.22 (precise) .  Loses game:     	White=1     	---        Mistake:       	White=6     	---        Inaccurate:     	White=1     	Black=1      OK:         	White=9     	Black=10     Best:        	---       	Black=5      Strong:       	---       	Black=1      Brilliant:      	---       	Black=1} 0-1

[Event "7th Sharjah Masters 2024"]
[Site "Sharjah"]
[Date "2024.05.15"]
[Round "2.12"]
[White "Radjabov, Teimour"]
[Black "Vokhidov, Shamsiddin"]
[Result "1/2-1/2"]
[ECO "B47"]
[WhiteElo "2723"]
[BlackElo "2592"]
[Annotator "TA"]
[PlyCount "49"]
[EventDate "2024.05.13"]
[EventType "swiss"]
[EventCountry "UAE"]
[SourceTitle "playchess.com"]
[Source "ChessBase"]
[SourceQuality "1"]
[TimeControl "5400+30"]

{[%evp 11,49,14,36,11,17,26,13,18,28,27,22,16,29,24,20,20,31,35,60,47,57,45,60,53,56,62,68,58,193,214,196,134,122,123,119,127,354,358,220,196]} 1. e4 {[%emt 1:31:00]} c5 {[%emt 1:31:00]} 2. Nf3 {[%emt 0:00:30][%cal Bg1f3,Bf3d4,Bd4b5][%mdl 32]} e6 {[%emt 0:00:30]} 3. d4 {[%emt 0:00:30]} cxd4 {[%emt 0:00:30]} 4. Nxd4 {[%emt 0:00:30]} Nc6 {[%emt 0:00:30]} 5. Nc3 {[%emt 0:00:30]} Qc7 {[%emt 0:00:30]} 6. Be2 {[%emt 0:00:30]} Nf6 {[%emt 0:00:30]} 7. Ndb5 {[%emt 0:00:30]} Qb8 {[%emt 0:00:30]} 8. f4 {[%emt 0:00:30]} d6 {[%emt 0:00:30]} 9. g4 {[%emt 0:00:30][%cal Bg2g4,Bg4g5][%mdl 32] The position is equal.} a6 {[%emt 0:00:30]} 10. Nd4 {[%emt 0:00:30]} d5 {[%emt 0:00:30]} 11. exd5 {[%emt 0:00:30]} exd5 12. g5 {[%emt 0:00:30]} Ne4 {[%emt 0:01:00]} 13. Nxe4 {[%emt 0:00:30]} dxe4 {[%emt 0:00:30]} 14. Be3 {[%emt 0:00:30]} Bd7 {[%emt 0:00:30]} 15. Qd2 {[%emt 0:00:30]} Qc7 {[%emt 0:00:30]} 16. Nxc6 {[%emt 0:00:30]} Qxc6 {[%emt 0:00:30]} 17. O-O-O {[%emt 0:00:30]} Be6 {[%emt 0:00:30][%cal Of8e7] Dodges Bc4} 18. Qa5 {[%emt 0:00:30] aiming for f5.} Rc8 {[%emt 0:00:30]} 19. Rd2 {[%emt 0:00:30] Hoping for f5. Active counter play!} Be7 {[%emt 0:00:30]} (19... Qc7 $14 20. Qa4+ Qc6) 20. f5 $18 {[%emt 0:00:30]} Bc4 {[%emt 0:00:30]} 21. Qe5 {[%emt 0:00:30]} (21. f6 $1 $18 gxf6 22. Bxc4 Qxc4 23. gxf6 Bxf6 24. Bg5) 21... f6 $16 {[%emt 0:00:30] Black is weak on the dark squares} 22. gxf6 $40 {[%emt 0:00:30][%mdl 128] White attacks with force.} gxf6 {[%emt 0:00:30] [#]} 23. Qf4 {[%emt 0:00:30] And now Bh5+ would win.} Bxa2 $2 {[%emt 0:00:30] [#]} (23... Bxe2 $16 24. Rxe2 Qc4) 24. Bh5+ $1 $18 {[%emt 0:00:30]} Bf7 {[%emt 0:00:30]} 25. Qg4 {[%emt 0:00:30] Weighted Error Value: White=0.06 (flawless) /Black=0.31.  Loses game:     	---       	Black=1      Mistake:       	White=1     	Black=1      OK:         	White=12    	Black=7      Best:        	White=1     	Black=2      Strong:       	White=1     	---} 1/2-1/2